[Event "20 ans"]
[Date "2016.10.28"]
[Round "QF1.1"]
[White "Radjabov, Teimour"]
[Black "Moiseenko, Alexander"]
[Result "1-0"]
[WhiteElo "2788"]
[BlackElo "2651"]
[ECO "B30"]
[WhiteFed "AZE"]
[BlackFed "UKR"]
[FCGameId "-1977953579"]
[TimeControl "900+3"]

1. e4 {[%clk 0:15:05]} c5 {[%clk 0:15:05]} 2. Nf3 {[%clk 0:15:07]} Nc6  {[%clk 0:15:06]} 3. Nc3 {[%clk 0:15:09]} e5 {[%clk 0:14:00]} 4. Bc4  {[%clk 0:15:09]} Be7 {[%clk 0:13:57]} 5. d3 {[%clk 0:15:05]} Nf6  {[%clk 0:13:46]} 6. Nd2 {[%clk 0:15:06]} d6 {[%clk 0:13:28]} 7. Nf1  {[%clk 0:15:06]} Bg4 {[%clk 0:13:28]} 8. f3 {[%clk 0:15:08]} Be6  {[%clk 0:13:30]} 9. Ne3 {[%clk 0:15:10]} O-O {[%clk 0:13:27]} 10. O-O  {[%clk 0:15:02]} a6 {[%clk 0:13:29]} 11. a4 {[%clk 0:15:01]} Nb4  {[%clk 0:13:24]} 12. Qe2 {[%clk 0:13:55]} Re8 {[%clk 0:09:56]} 13. Bd2  {[%clk 0:12:20]} Bf8 {[%clk 0:09:32]} 14. a5 {[%clk 0:08:57]} d5  {[%clk 0:08:35]} 15. exd5 {[%clk 0:08:57]} Nfxd5 {[%clk 0:08:29]} 16. Ncxd5  {[%clk 0:08:05]} Nxd5 {[%clk 0:08:27]} 17. Nxd5 {[%clk 0:08:05]} Bxd5  {[%clk 0:08:28]} 18. Bc3 {[%clk 0:08:06]} g6 {[%clk 0:07:54]} 19. b3  {[%clk 0:07:04]} Bg7 {[%clk 0:07:52]} 20. Rfe1 {[%clk 0:05:52]} Qd7  {[%clk 0:06:44]} 21. Qf2 {[%clk 0:05:34]} Rac8 {[%clk 0:06:13]} 22. Re2  {[%clk 0:05:18]} Qd6 {[%clk 0:04:11]} 23. Rae1 {[%clk 0:04:41]} Re6  {[%clk 0:04:10]} 24. Qh4 {[%clk 0:02:34]} Rce8 {[%clk 0:03:55]} 25. Bd2  {[%clk 0:02:32]} Bf6 {[%clk 0:03:24]} 26. Qf2 {[%clk 0:02:19]} Bg7  {[%clk 0:03:14]} 27. Kh1 {[%clk 0:02:18]} h5 {[%clk 0:03:03]} 28. Be3  {[%clk 0:02:16]} Rc8 {[%clk 0:03:02]} 29. h3 {[%clk 0:01:43]} Qc6  {[%clk 0:02:11]} 30. Qh4 {[%clk 0:01:31]} Bf6 {[%clk 0:01:52]} 31. Qg3  {[%clk 0:01:33]} Bg7 {[%clk 0:01:46]} 32. Qf2 {[%clk 0:01:26]} Qd6  {[%clk 0:01:41]} 33. Bg5 {[%clk 0:01:19]} Rce8 {[%clk 0:01:37]} 34. Qh4  {[%clk 0:01:21]} Bxc4 {[%clk 0:01:20]} 35. Qxc4 {[%clk 0:01:08]} Qc7  {[%clk 0:01:11]} 36. Bd2 {[%clk 0:01:05]} Kh7 {[%clk 0:01:06]} 37. Bc3  {[%clk 0:01:00]} Qc6 {[%clk 0:01:02]} 38. Re4 {[%clk 0:00:53]} Qd6  {[%clk 0:00:46]} 39. Bd2 {[%clk 0:00:46]} Qc6 {[%clk 0:00:47]} 40. R4e2  {[%clk 0:00:44]} Qd6 {[%clk 0:00:46]} 41. Be3 {[%clk 0:00:45]} Bf8  {[%clk 0:00:40]} 42. Qh4 {[%clk 0:00:35]} Qc7 {[%clk 0:00:37]} 43. Bd2  {[%clk 0:00:34]} Kg8 {[%clk 0:00:36]} 44. Re4 Bg7 {[%clk 0:00:29]} 45. g4  {[%clk 0:00:25]} hxg4 {[%clk 0:00:24]} 46. hxg4 {[%clk 0:00:27]} f5  {[%clk 0:00:26]} 47. R4e2 {[%clk 0:00:23]} Kf7 {[%clk 0:00:27]} 48. gxf5  {[%clk 0:00:19]} gxf5 {[%clk 0:00:20]} 49. Rg1 {[%clk 0:00:18]} Qc6  {[%clk 0:00:09]} 50. Qh5+ {[%clk 0:00:05]} Kg8 {[%clk 0:00:06]} 51. Reg2  {[%clk 0:00:06]} R8e7 {[%clk 0:00:07]} 52. Qxf5 {[%clk 0:00:07]} Rf6  {[%clk 0:00:07]} 53. Qh5 {[%clk 0:00:05]} Qxf3 {[%clk 0:00:07]} 54. Qxf3  {[%clk 0:00:06]} Rxf3 {[%clk 0:04:04]} 55. Bg5 {[%clk 0:00:08]} Ref7  {[%clk 0:00:08]} 56. Rh2 {[%clk 0:00:08]} Rf1 {[%clk 0:00:09]} 57. Be3  {[%clk 0:00:10]} Rxg1+ {[%clk 0:00:05]} 58. Kxg1 {[%clk 0:00:13]} e4  {[%clk 0:00:04]} 59. dxe4 {[%clk 0:00:07]} Re7 {[%clk 0:00:07]} 60. Bxc5  {[%clk 0:00:05]} Rxe4 {[%clk 0:00:09]} 61. Rd2 {[%clk 0:00:07]} Bc3  {[%clk 0:00:07]} 62. Rd8+ {[%clk 0:00:09]} Kf7 {[%clk 0:00:10]} 63. Rd7+  {[%clk 0:00:11]} Ke6 {[%clk 0:00:12]} 64. Rxb7 {[%clk 0:00:13]} Bxa5  {[%clk 0:00:13]} 65. c4 {[%clk 0:00:09]} Re1+ {[%clk 0:00:07]} 66. Kf2  {[%clk 0:00:11]} Rb1 {[%clk 0:00:09]} 67. b4 {[%clk 0:00:10]} Bd8  {[%clk 0:00:08]} 68. Ra7 {[%clk 0:00:09]} a5 {[%clk 0:00:07]} 69. Ra6+  {[%clk 0:00:06]} Kf5 {[%clk 0:00:06]} 70. Ra8 {[%clk 0:00:05]} Bh4+  {[%clk 0:00:05]} 71. Ke2 {[%clk 0:00:07]} axb4 {[%clk 0:00:07]} 72. Kd3  {[%clk 0:00:08]} b3 {[%clk 0:00:07]} 73. Rb8 {[%clk 0:00:10]} Bf6  {[%clk 0:00:07]} 74. Rb5 {[%clk 0:00:10]} Ke6 {[%clk 0:00:08]} 75. Ba3  {[%clk 0:00:07]} b2 {[%clk 0:00:07]} 76. Bxb2 {[%clk 0:00:06]} Rxb2  {[%clk 0:00:05]} 77. Rxb2 {[%clk 0:00:06]} Bxb2 {[%clk 0:00:08]} 78. c5  {[%clk 0:00:07]} Kd5 79. c6 Kxc6 1-0

[Event "20 ans"]
[Date "2016.10.28"]
[Round "QF2"]
[White "Hou, Yifan"]
[Black "Korobov, Anton"]
[Result "0-1"]
[WhiteElo "2645"]
[BlackElo "2714"]
[ECO "B31"]
[WhiteFed "CHN"]
[BlackFed "UKR"]
[FCGameId "2084369348"]
[TimeControl "900+3"]

1. e4 {[%clk 0:15:04]} c5 {[%clk 0:15:05]} 2. Nf3 {[%clk 0:15:05]} Nc6  {[%clk 0:15:06]} 3. Bb5 {[%clk 0:14:58]} g6 {[%clk 0:15:07]} 4. Bxc6  {[%clk 0:14:58]} bxc6 {[%clk 0:15:08]} 5. O-O {[%clk 0:14:55]} Bg7  {[%clk 0:15:07]} 6. Re1 {[%clk 0:14:50]} Nh6 {[%clk 0:14:52]} 7. c3  {[%clk 0:13:40]} O-O {[%clk 0:14:49]} 8. h3 {[%clk 0:13:38]} f5 {[%clk 0:14:36]}  9. e5 {[%clk 0:13:40]} Nf7 {[%clk 0:14:36]} 10. d3 {[%clk 0:13:38]} Rb8  {[%clk 0:14:10]} 11. Na3 {[%clk 0:12:49]} Ba6 {[%clk 0:13:57]} 12. c4  {[%clk 0:10:36]} d6 {[%clk 0:13:33]} 13. Qa4 {[%clk 0:08:56]} Bc8  {[%clk 0:11:44]} 14. exd6 {[%clk 0:07:48]} exd6 {[%clk 0:11:45]} 15. Rb1  {[%clk 0:07:14]} g5 {[%clk 0:11:30]} 16. Nh2 {[%clk 0:05:15]} Ne5  {[%clk 0:11:13]} 17. Qd1 {[%clk 0:05:10]} g4 {[%clk 0:10:52]} 18. f4  {[%clk 0:04:58]} Ng6 {[%clk 0:09:29]} 19. Nc2 {[%clk 0:04:00]} Qh4  {[%clk 0:09:10]} 20. Nf1 {[%clk 0:03:03]} gxh3 {[%clk 0:08:35]} 21. g3  {[%clk 0:03:06]} Qg4 {[%clk 0:07:46]} 22. Kh2 {[%clk 0:03:08]} Bd4  {[%clk 0:07:06]} 23. Nfe3 {[%clk 0:02:50]} Qxd1 {[%clk 0:07:03]} 24. Nxd1  {[%clk 0:02:49]} Bd7 {[%clk 0:06:40]} 25. Be3 {[%clk 0:02:44]} Bg7  {[%clk 0:06:07]} 26. Kxh3 {[%clk 0:02:41]} Rfe8 {[%clk 0:06:09]} 27. Nc3  {[%clk 0:02:24]} Kf7 {[%clk 0:05:51]} 28. Bd2 {[%clk 0:01:59]} Rh8  {[%clk 0:05:42]} 29. Ne3 {[%clk 0:01:26]} h5 {[%clk 0:05:35]} 30. Rf1  {[%clk 0:01:09]} h4 {[%clk 0:04:50]} 31. g4 {[%clk 0:01:11]} fxg4+  {[%clk 0:04:52]} 32. Nxg4 {[%clk 0:01:14]} Bf5 {[%clk 0:04:54]} 33. Ne4  {[%clk 0:01:15]} Ke6 {[%clk 0:04:39]} 34. Rbe1 {[%clk 0:01:02]} Kd7  {[%clk 0:04:38]} 35. Bc3 {[%clk 0:01:04]} Rhg8 {[%clk 0:03:39]} 36. Bxg7  {[%clk 0:00:59]} Rxg7 {[%clk 0:03:41]} 37. Nf6+ {[%clk 0:00:58]} Kc8  {[%clk 0:03:09]} 38. Re8+ {[%clk 0:00:34]} Kb7 {[%clk 0:03:03]} 39. Rxb8+ Kxb8  {[%clk 0:03:06]} 40. Rf3 {[%clk 0:00:20]} a5 {[%clk 0:02:26]} 41. Ne8  {[%clk 0:00:11]} Rg8 {[%clk 0:02:10]} 42. Nf6 {[%clk 0:00:10]} Rf8  {[%clk 0:02:07]} 43. Nh5 {[%clk 0:00:09]} Bc8 {[%clk 0:01:51]} 44. b3  {[%clk 0:00:07]} a4 {[%clk 0:01:49]} 45. bxa4 {[%clk 0:00:09]} Ka7  {[%clk 0:01:51]} 46. Ng7 {[%clk 0:00:06]} Ne5 {[%clk 0:01:24]} 47. fxe5  {[%clk 0:00:05]} Rxf3+ 48. Kxh4 Rf7 {[%clk 0:01:07]} 49. Nh5 {[%clk 0:00:05]}  Bxg4 {[%clk 0:01:09]} 50. Kxg4 {[%clk 0:00:07]} dxe5 {[%clk 0:01:11]} 51. Ng3  {[%clk 0:00:09]} Rf4+ {[%clk 0:01:04]} 52. Kg5 {[%clk 0:00:11]} Rf3  {[%clk 0:01:01]} 53. Ne4 {[%clk 0:00:13]} Rxd3 {[%clk 0:01:02]} 54. Kf5  {[%clk 0:00:08]} Rd4 {[%clk 0:01:00]} 55. Nxc5 {[%clk 0:00:06]} Rxc4  {[%clk 0:01:01]} 56. Ne4 {[%clk 0:00:06]} Rxa4 {[%clk 0:00:59]} 57. Kxe5  {[%clk 0:00:07]} Rxa2 {[%clk 0:01:01]} 58. Kd4 0-1

[Event "20 ans"]
[Date "2016.10.28"]
[Round "QF2"]
[White "Gharamian, Tigran"]
[Black "Anand, Viswanathan"]
[Result "1/2-1/2"]
[WhiteElo "2638"]
[BlackElo "2802"]
[ECO "C65"]
[WhiteFed "FRA"]
[BlackFed "IND"]
[FCGameId "1690729477"]
[TimeControl "900+3"]

1. e4 {[%clk 0:15:04]} e5 {[%clk 0:15:04]} 2. Nf3 {[%clk 0:15:05]} Nc6  {[%clk 0:15:06]} 3. Bb5 {[%clk 0:15:06]} Nf6 {[%clk 0:15:08]} 4. d3  {[%clk 0:15:08]} Bc5 {[%clk 0:15:09]} 5. Bxc6 {[%clk 0:15:09]} dxc6  {[%clk 0:15:11]} 6. Qe2 {[%clk 0:15:11]} Bd6 {[%clk 0:14:54]} 7. Nbd2  {[%clk 0:14:50]} Be6 {[%clk 0:14:31]} 8. b3 {[%clk 0:14:29]} Nd7  {[%clk 0:14:28]} 9. Bb2 {[%clk 0:11:34]} c5 {[%clk 0:14:26]} 10. Nc4  {[%clk 0:11:35]} f6 {[%clk 0:14:17]} 11. Nh4 {[%clk 0:11:13]} g6  {[%clk 0:13:45]} 12. O-O {[%clk 0:11:04]} Qe7 {[%clk 0:13:14]} 13. Nxd6+  {[%clk 0:08:32]} cxd6 {[%clk 0:13:13]} 14. f4 {[%clk 0:08:23]} O-O-O 15. fxe5  {[%clk 0:07:58]} fxe5 {[%clk 0:13:11]} 16. Nf3 {[%clk 0:08:00]} g5  {[%clk 0:13:09]} 17. Bc1 {[%clk 0:07:53]} Rhg8 {[%clk 0:13:06]} 18. Be3  {[%clk 0:07:54]} g4 {[%clk 0:12:53]} 19. Nd2 {[%clk 0:07:53]} g3  {[%clk 0:12:55]} 20. h3 {[%clk 0:07:35]} Rdf8 {[%clk 0:12:32]} 21. Rf3  {[%clk 0:07:24]} Rxf3 {[%clk 0:12:28]} 22. Qxf3 {[%clk 0:07:25]} Qh4  {[%clk 0:12:11]} 23. Rf1 {[%clk 0:07:11]} Kc7 {[%clk 0:11:41]} 24. Qe2  {[%clk 0:06:22]} Nb8 {[%clk 0:11:19]} 25. c3 {[%clk 0:06:12]} Nc6  {[%clk 0:11:20]} 26. Nf3 {[%clk 0:05:58]} Qh5 {[%clk 0:10:59]} 27. b4  {[%clk 0:05:55]} cxb4 {[%clk 0:10:49]} 28. cxb4 {[%clk 0:05:57]} Nxb4  {[%clk 0:10:50]} 29. Bxa7 {[%clk 0:05:26]} Nc6 {[%clk 0:10:37]} 30. Be3  {[%clk 0:05:24]} Ra8 {[%clk 0:10:30]} 31. Rb1 {[%clk 0:05:00]} Rxa2  {[%clk 0:10:27]} 32. Qd1 {[%clk 0:04:33]} Kc8 {[%clk 0:09:51]} 33. Ra1  {[%clk 0:04:22]} Rxa1 {[%clk 0:08:37]} 34. Qxa1 {[%clk 0:04:24]} Bxh3  {[%clk 0:07:49]} 35. Qa8+ {[%clk 0:03:43]} Kc7 {[%clk 0:07:39]} 36. Qg8  {[%clk 0:03:43]} Bd7 {[%clk 0:07:18]} 37. Qxg3 {[%clk 0:03:37]} b5  {[%clk 0:07:19]} 38. Qe1 {[%clk 0:03:34]} Bg4 {[%clk 0:07:14]} 39. Nd2  {[%clk 0:03:25]} Bd1 {[%clk 0:07:16]} 40. Qg3 {[%clk 0:03:11]} Qg4  {[%clk 0:07:17]} 41. Qf2 {[%clk 0:03:13]} Qe6 {[%clk 0:07:01]} 42. Qh4  {[%clk 0:02:45]} h5 {[%clk 0:06:57]} 43. Qg5 {[%clk 0:02:45]} Bc2  {[%clk 0:06:47]} 44. Bf2 {[%clk 0:02:22]} Qg4 {[%clk 0:06:40]} 45. Qh6  {[%clk 0:02:11]} h4 {[%clk 0:05:46]} 46. Qh7+ {[%clk 0:02:04]} Qd7  {[%clk 0:05:48]} 47. Qxh4 {[%clk 0:02:05]} Bxd3 {[%clk 0:05:47]} 48. Qg3  {[%clk 0:02:04]} Bc4 {[%clk 0:05:45]} 49. Qc3 {[%clk 0:01:30]} Qe6  {[%clk 0:05:39]} 50. Nf3 {[%clk 0:01:11]} Qg4 {[%clk 0:05:36]} 51. Qe3  {[%clk 0:01:01]} Nd4 {[%clk 0:05:37]} 52. Nxd4 {[%clk 0:00:59]} Qd1+  {[%clk 0:05:39]} 53. Kh2 {[%clk 0:00:55]} Qxd4 {[%clk 0:05:34]} 54. Qe1  {[%clk 0:00:35]} Qd3 {[%clk 0:05:29]} 55. Qa5+ {[%clk 0:00:32]} Kd7  {[%clk 0:05:30]} 56. Qa7+ {[%clk 0:00:29]} 1/2-1/2

[Event "20 ans"]
[Date "2016.10.28"]
[Round "QF2"]
[White "Onischuk, Vladimir"]
[Black "Vachier-Lagrave, Maxime"]
[Result "0-1"]
[WhiteElo "2720"]
[BlackElo "2795"]
[ECO "B92"]
[WhiteFed "UKR"]
[BlackFed "FRA"]
[FCGameId "-606582442"]
[TimeControl "900+3"]

1. e4 {[%clk 0:15:03]} c5 {[%clk 0:15:05]} 2. Nf3 {[%clk 0:14:59]} d6  {[%clk 0:15:07]} 3. d4 {[%clk 0:15:01]} cxd4 {[%clk 0:15:09]} 4. Nxd4  {[%clk 0:15:02]} Nf6 {[%clk 0:15:10]} 5. Nc3 {[%clk 0:15:04]} a6  {[%clk 0:15:12]} 6. Be2 {[%clk 0:14:53]} e5 {[%clk 0:15:12]} 7. Nb3  {[%clk 0:14:55]} Be7 {[%clk 0:15:13]} 8. Bg5 {[%clk 0:14:57]} Be6  {[%clk 0:15:08]} 9. Bxf6 {[%clk 0:14:58]} Bxf6 {[%clk 0:15:09]} 10. Qd3  {[%clk 0:15:00]} Be7 {[%clk 0:14:51]} 11. Nd5 {[%clk 0:14:25]} Nd7  {[%clk 0:14:27]} 12. Rd1 {[%clk 0:10:47]} Bxd5 {[%clk 0:14:28]} 13. Qxd5  {[%clk 0:10:48]} Qc7 {[%clk 0:14:29]} 14. c3 {[%clk 0:09:54]} Nf6  {[%clk 0:13:13]} 15. Qd3 {[%clk 0:09:48]} O-O {[%clk 0:13:09]} 16. Nd2  {[%clk 0:09:07]} Rfd8 {[%clk 0:12:49]} 17. Bf3 {[%clk 0:08:39]} b5  {[%clk 0:10:47]} 18. O-O {[%clk 0:08:36]} g6 {[%clk 0:09:43]} 19. Ra1  {[%clk 0:06:07]} Nd7 {[%clk 0:09:30]} 20. Rfd1 {[%clk 0:05:38]} Nb6  {[%clk 0:09:22]} 21. g3 {[%clk 0:05:36]} d5 {[%clk 0:07:36]} 22. exd5  {[%clk 0:04:20]} f5 {[%clk 0:07:38]} 23. h4 {[%clk 0:03:23]} e4 {[%clk 0:07:08]}  24. Nxe4 {[%clk 0:03:23]} fxe4 {[%clk 0:07:10]} 25. Bxe4 {[%clk 0:03:22]} Nc4  {[%clk 0:05:12]} 26. Bxg6 {[%clk 0:01:06]} Bc5 {[%clk 0:05:14]} 27. d6  {[%clk 0:00:24]} Rxd6 {[%clk 0:05:10]} 28. Qf3 {[%clk 0:00:17]} Rf8  {[%clk 0:04:43]} 29. Bf5 {[%clk 0:00:12]} Kh8 {[%clk 0:03:28]} 30. b4  {[%clk 0:00:07]} Rdf6 {[%clk 0:02:58]} 31. Rd5 {[%clk 0:00:09]} Ne5  {[%clk 0:02:30]} 32. Qe2 {[%clk 0:00:11]} Bxf2+ {[%clk 0:02:22]} 33. Qxf2  {[%clk 0:00:12]} Rxf5 {[%clk 0:02:22]} 34. Qc5 {[%clk 0:00:05]} Qg7  {[%clk 0:02:12]} 0-1